Workbook

Sheet Détails
A1: Client | B1: Ref Produit | C1: N° CDE | D1: Date Expédition | E1: Dte Liv | F1: Qte | G1: Cartons | H1: Unités | I1: Ligne | J1: Mois Execution | K1: Date Prod | L1: Date Prod
A2: AIR TRANSAT | B2: 0205 | C2: 4500807312 | E2: 2017-08-04 | F2: 2P | G2: 216 | H2: =G2*256 -> 55,296 | I2: L | J2: AOUT
A3: EXKI | B3: 0213 | C3: AC4896 | E3: 2017-08-08 | F3: 2P | G3: 216 | H3: 55,296 | I3: K | J3: AOUT
A4: STOCK | B4: 0300 | E4: 2017-08-16 | F4: 1P | G4: 108 | H4: 27,648 | I4: K | J4: AOUT
A5: EVA AIR | B5: 0500 | C5: QP17002575 | E5: 2017-08-25 | F5: 2P | G5: 192 | H5: 49,152 | I5: L | J5: AOUT
A6: LSG | B6: 0500 | C6: 4500873808 | E6: 2017-07-29 | F6: 2P | G6: 200 | H6: 51,200 | I6: L | J6: AOUT
A7: CLASSIC FINE FOOD | B7: 0506 | C7: BC593558 | E7: 2017-09-04 | F7: 2P | G7: 150 | H7: 38,400 | I7: L | J7: AOUT
A8: ANA | B8: 1300 | E8: 2017-08-16 | F8: 2P | G8: 216 | H8: 55,296 | I8: K | J8: AOUT
A9: ALCAMORETTI | B9: 1311 | E9: 2017-09-04 | F9: 1P | G9: 400 | H9: =G9*50 -> 20,000 | I9: K | J9: AOUT
A10: IFOOD | B10: 1400 | E10: 2017-09-04 | F10: 1P | G10: 108 | H10: =G10*256 -> 27,648 | I10: L | J10: AOUT
A11: IFOOD | B11: 1500 | C11: PO17UK02423 | E11: 2017-08-11 | F11: 1P | G11: 108 | H11: 27,648 | I11: L | J11: AOUT
A12: MIX BUFFET | B12: 1901 | C12: CA1707000324 | E12: 2017-08-18 | F12: 8P | G12: 864 | H12: =G12*256 -> 221,184 | I12: K | J12: AOUT
A13: MIX BUFFET | B13: 1910 | C13: CA1706000403 | E13: 2017-08-28 | F13: 8P | G13: 864 | H13: 221,184 | I13: K | J13: AOUT
A14: MIX BUFFET | B14: 1910 | C14: CA1707000324 | E14: 2017-08-18 | F14: 8P | G14: 864 | H14: 221,184 | I14: L | J14: AOUT
A15: AERO MEXICO | B15: 0500 | C15: 21888-4 | E15: 2018-05-11 | F15: 2P | G15: 141 | H15: 36,096 | I15: L | J15: AVRIL
A16: EVA AIR | B16: 0500 | E16: 2017-07-05 | F16: 3P | G16: 288 | H16: 73,728 | I16: L | J16: AVRIL
A17: DEAN & DELUCA | B17: 0203 | C17: BAILL20171201 | E17: 2017-12-29 | G17: 40 | H17: 10,240 | I17: L | J17: DECEMBRE
A18: VANDENBOGAERDE | B18: 0302 | C18: 34974 | E18: 2017-12-11 | F18: 1P | G18: 108 | H18: 27,648 | I18: K | J18: DECMBRE
A19: DEAN & DELUCA | B19: 0303 | C19: BAILL20171201 | E19: 2017-12-29 | G19: 40 | H19: 10,240 | I19: L | J19: DECEMBRE
A20: DEAN & DELUCA | B20: 0403 | C20: BAILL20171201 | E20: 2017-12-29 | G20: 40 | H20: 10,240 | I20: L | J20: DECEMBRE
A21: EVA AIR | B21: 0500 | C21: QP17006037 | E21: 2018-01-02 | F21: 2P | G21: 192 | H21: 49,152 | I21: L | J21: DECEMBRE
A22: FBS | B22: 1300 | C22: CFF1706786 | E22: 2017-12-13 | F22: 3P | G22: 294 | H22: 75,264 | I22: L | J22: DECEMBRE
A23: DEAN & DELUCA | B23: 1303 | C23: BAILL20171201 | E23: 2017-12-29 | G23: 40 | H23: 10,240 | I23: L | J23: DECEMBRE
A24: DEAN & DELUCA | B24: 1483 | C24: BAILL20171202 | E24: 2017-12-30 | G24: 40 | H24: 2,000 | I24: N | J24: DECEMBRE
A25: DEAN & DELUCA | B25: 1503 | C25: BAILL20171201 | E25: 2017-12-29 | G25: 40 | H25: =G25*256 -> 10,240 | I25: L | J25: DECEMBRE
A26: DEAN & DELUCA | B26: 1683B | C26: BAILL20171201 | E26: 2017-12-29 | G26: 40 | H26: 2,000 | I26: N | J26: DECEMBRE
A27: DEAN & DELUCA | B27: 1783 | C27: BAILL20171201 | E27: 2017-12-29 | G27: 40 | H27: 2,000 | I27: N | J27: DECEMBRE
A28: MIX BUFFET | B28: 1901 | C28: CA1711000872 | E28: 2017-12-18 | F28: 6P | G28: 648 | H28: =G28*256 -> 165,888 | I28: K | J28: DECEMBRE
A29: MIX BUFFET | B29: 1910 | C29: CA1711000871 | E29: 2018-01-02 | F29: 4P | G29: 432 | H29: 110,592 | I29: L | J29: DECEMBRE
A30: DEAN & DELUCA | B30: 1913 | C30: BAILL20171201 | E30: 2017-12-29 | G30: 40 | H30: 10,240 | I30: L | J30: DECEMBRE
A31: AIR FRANCE | B31: 0100 | C31: 5319478 | D31: 6007296 | E31: 2018-02-28 | F31: 5P | G31: 540 | H31: 138,240 | I31: L | J31: FEVRIER
A32: AERO MEXICO | B32: 0500 | C32: 21888-2 | E32: 2018-03-12 | F32: 2P | G32: 141 | H32: 36,096 | I32: L | J32: FEVRIER
A33: AIR CANADA | B33: 0500 | C33: AC083698 | E33: 2018-02-23 | F33: 20P | G33: 2700 | H33: 691,200 | I33: K | J33: FEVRIER
A34: AIR FRANCE | B34: 0100 | C34: 5319316 | D34: 6007296 | E34: 2017-01-08 | F34: 6P | G34: 648 | H34: 165,888 | I34: L | J34: JANVIER
A35: COMATEC | B35: 0206 | C35: CF008733 | E35: 2018-01-10 | F35: 1P | G35: 108 | H35: 27,648 | I35: L | J35: JANVIER
A36: EVA AIR | B36: 0500 | C36: QP17006587 | E36: 2018-02-20 | F36: 2P | G36: 192 | H36: 49,152 | I36: K | J36: JANVIER
A37: AERO MEXICO | B37: 0500 | C37: 21888-1 | E37: 2018-02-05 | F37: 2P | G37: 125 | H37: 32,000 | I37: L | J37: JANVIER
A38: EVA AIR | B38: 0500 | C38: QP17006586 | E38: 2018-01-20 | F38: 2P | G38: 192 | H38: 49,152 | I38: K | J38: JANVIER
A39: LSG KOREA | B39: 0500 | C39: 4500962773 | E39: 2018-01-20 | F39: 2P | G39: 200 | H39: 51,200 | I39: K | J39: JANVIER
A40: EVA AIR | B40: 0500 | C40: QP17006383 | E40: 2018-01-11 | F40: 2P | G40: 192 | H40: 49,152 | I40: L | J40: JANVIER
A41: HACO | B41: 0504 | C41: PO00157901 | E41: 2018-01-18 | F41: 10P | G41: 1080 | H41: 276,480 | I41: L | J41: JANVIER
A42: ANA | B42: 1300 | C42: 4500395141 | E42: 2018-01-15 | F42: 2P | G42: 216 | H42: 55,296 | I42: K | J42: JANVIER
A43: MIX BUFFET | B43: 1910 | C43: CA1801000247 | E43: 2018-02-02 | F43: 4P | G43: 432 | H43: 110,592 | I43: L | J43: JANVIER
A44: MIX BUFFET | B44: 1910 | C44: CA1801000035 | E44: 2018-01-26 | F44: 4P | G44: 432 | H44: 110,592 | I44: L | J44: JANVIER
A45: MIX BUFFET | B45: 1910 | C45: CA1801000248 | E45: 2018-01-18 | F45: 4P | G45: 432 | H45: 110,592 | I45: L | J45: JANVIER
A46: PERI | B46: 1992 | E46: 2018-01-15 | F46: 30P | G46: 2550 | H46: 652,800 | I46: M | J46: JANVIER
A47: COMATEC | B47: 0206 | E47: 2017-07-21 | F47: 2P | G47: 108 | H47: 27,648 | I47: K | J47: JUILLET
A48: EXKI | B48: 0213 | C48: AC4793 | E48: 2017-07-24 | F48: 2P | G48: 216 | H48: 55,296 | I48: L | J48: JUILLET
A49: SYSTÈME U EST | B49: 0217 | E49: 2017-07-10 | F49: 1P | G49: 100 | H49: 5,000 | I49: K | J49: JUILLET
A50: STOCK | B50: 0250 | E50: 2017-08-04 | F50: 2P | G50: 240 | H50: 30,720 | I50: M | J50: JUILLET
A51: CLASS CROUTE | B51: 0252 | E51: 2017-08-04 | F51: 6P | G51: 720 | H51: 92,160 | I51: M | J51: JUILLET
A52: VANDENBOGAERDE | B52: 0302 | C52: 33963 | E52: 2017-08-01 | F52: 1P | G52: 108 | H52: 27,648 | I52: K | J52: JUILLET
A53: SYSTÈME U EST | B53: 0417 | E53: 2017-07-10 | F53: 1P | G53: 100 | H53: 5,000 | I53: K | J53: JUILLET
A54: STOCK | B54: 0450 | E54: 2017-07-21 | G54: 12 | H54: =G54*128 -> 1,536 | I54: M | J54: JUILLET
A55: AERO MEXICO | B55: 0500 | C55: AM14107_6 | E55: 2017-07-29 | F55: 2P | G55: 148 | H55: =G55*256 -> 37,888 | I55: L | J55: JUILLET
A56: LSG | B56: 0500 | C56: 4500873807 | E56: 2017-07-02 | F56: 2P | G56: 200 | H56: =G56*256 -> 51,200 | I56: L | J56: JUILLET
A57: HACO | B57: 0504 | C57: PO00140992 | E57: 2017-08-04 | F57: 6P | G57: 648 | H57: =G57*256 -> 165,888 | I57: L | J57: JUILLET
A58: LEGUFRUIT | B58: 0550 | E58: 2017-07-21 | G58: 50 | H58: =G58*128 -> 6,400 | I58: M | J58: JUILLET
A59: NOON SANDWICH | B59: 0600 | C59: 0000019452 | E59: 2017-08-04 | F59: 1P | G59: 42 | H59: =G59*256 -> 10,752 | I59: L | J59: JUILLET
A60: LEGUFRUIT | B60: 0750 | E60: 2017-07-21 | G60: 15 | H60: =G60*128 -> 1,920 | I60: M | J60: JUILLET
A61: ANA | B61: 1300 | C61: 4500377323 | E61: 2017-08-04 | F61: 2P | G61: 216 | H61: =G61*256 -> 55,296 | I61: L | J61: JUILLET
A62: STOCK | B62: 1300 | E62: 2017-07-28 | F62: 2P | G62: 216 | H62: =G62*256 -> 55,296 | I62: L | J62: JUILLET
A63: CLASSIC FINE FOOD | B63: 1306 | C63: 16461 | E63: 2017-08-04 | F63: 1P | G63: 40 | H63: =G63*256 -> 10,240 | I63: L | J63: JUILLET
A64: IFOOD | B64: 1400 | C64: PO17UKT00115 | E64: 2017-07-11 | F64: 1P | G64: 108 | H64: =G64*256 -> 27,648 | I64: L | J64: JUILLET
A65: LEGUFRUIT | B65: 1450 | E65: 2017-07-21 | G65: 65 | H65: =G65*128 -> 8,320 | I65: M | J65: JUILLET
A66: IFOOD | B66: 1500 | C66: PO17UKT00116 | E66: 2017-09-25 | F66: 1P | G66: 108 | H66: =G66*256 -> 27,648 | I66: K | J66: JUILLET
A67: MIX BUFFET | B67: 1901 | C67: CA1706000402 | E67: 2017-08-28 | F67: 8P | G67: 864 | H67: =G67*256 -> 221,184 | I67: K | J67: JUILLET
A68: MIX BUFFET | B68: 1901 | C68: CA1706000401 | E68: 2017-08-07 | F68: 8P | G68: 864 | H68: =G68*256 -> 221,184 | I68: K | J68: JUILLET
A69: MIX BUFFET | B69: 1901 | C69: STOCK ÉTÉ | E69: 2017-08-04 | F69: 8P | G69: 864 | H69: =G69*256 -> 221,184 | I69: K | J69: JUILLET
A70: AIR FRANCE | B70: 1908 | C70: 5306056 | E70: 2017-07-24 | F70: 1P | G70: 120 | H70: 15,360 | I70: M | J70: JUILLET
A71: MIX BUFFET | B71: 1910 | C71: CA1706000401 | E71: 2017-08-07 | F71: 8P | G71: 864 | H71: =G71*256 -> 221,184 | I71: K | J71: JUILLET
A72: MIX BUFFET | B72: 1910 | C72: STOCK ÉTÉ | E72: 2017-08-04 | F72: 8P | G72: 864 | H72: 221,184 | I72: L | J72: JUILLET
A73: MIX BUFFET | B73: 1910 | C73: CA1705001099 | E73: 2017-07-24 | F73: 8P | G73: 864 | H73: 221,184 | I73: L | J73: JUILLET
A74: PERI | B74: 1992 | E74: 2017-07-13 | F74: 46P | G74: 3900 | H74: 998,400 | I74: M | J74: JUILLET
A75: IFOOD | B75: 2301 | C75: PO17UK00110 | E75: 2017-07-28 | F75: 3P | G75: 324 | H75: 82,944 | I75: M | J75: JUILLET
A76: IFOOD | B76: 2301 | C76: PO17UK02279 | E76: 2017-07-28 | F76: 1P | G76: 108 | H76: 27,648 | I76: M | J76: JUILLET
A77: IFOOD | B77: 2301 | C77: PO17UK00111 | E77: 2017-07-28 | F77: 1P | G77: 108 | H77: 27,648 | I77: M | J77: JUILLET
A78: CLASSIC FINE FOOD | B78: 2706 | C78: 16461 | E78: 2017-08-04 | F78: 1P | G78: 10 | H78: 2,560 | I78: L | J78: JUILLET
A79: MIX BUFFET | B79: 15 BD5 + 1 olive medelys 7 P5 | C79: CA1705001100 | E79: 2017-06-19 | F79: 8P | G79: 864 | H79: 221,184 | I79: K | J79: JUIN
A80: AIR FRANCE | B80: 0100 | C80: 5302711 | E80: 2017-08-04 | F80: 6P | G80: 648 | H80: 165,888 | I80: K | J80: JUIN
A81: AIR TRANSAT | B81: 0205 | C81: 4500799187 | E81: 2017-06-23 | F81: 1P | G81: 108 | H81: 27,648 | I81: K | J81: JUIN
A82: STOCK - COMATEC | B82: 0206 | E82: 2017-06-20 | F82: 2P | G82: 216 | H82: 55,296 | I82: K | J82: JUIN
A83: AERO MEXICO | B83: 0500 | C83: 21888-6 | E83: 2018-07-09 | F83: 2P | G83: 176 | H83: 45,056 | I83: L | J83: JUIN
A84: AIR CANADA | B84: 0500 | E84: 2017-07-24 | F84: 20P | G84: 2700 | H84: 691,200 | I84: L | J84: JUIN
A85: AERO MEXICO | B85: 0500 | C85: AM14107_5 | E85: 2017-06-29 | F85: 2P | G85: 168 | H85: 43,008 | I85: L | J85: JUIN
A86: LSG | B86: 0500 | C86: 4500873806 | E86: 2017-06-15 | F86: 2P | G86: 200 | H86: 51,200 | I86: L | J86: JUIN
A87: HACO | B87: 0504 | C87: PO00138706 | E87: 2017-07-07 | F87: 5P | G87: 540 | H87: 138,240 | I87: L | J87: JUIN
A88: ALCAMORETTI | B88: 0511 | E88: 2017-06-30 | F88: 1P | G88: 400 | H88: =G88*50 -> 20,000 | I88: L | J88: JUIN
A89: ANA | B89: 1300 | E89: 2017-07-05 | F89: 2P | G89: 216 | H89: =G89*256 -> 55,296 | I89: K | J89: JUIN
A90: ANA | B90: 1300 | E90: 2017-06-29 | F90: 3P | G90: 324 | H90: =G90*256 -> 82,944 | I90: L | J90: JUIN
A91: AIR FRANCE | B91: 1908 | E91: 2017-06-23 | F91: 1P | G91: 40 | H91: 5,120 | I91: M | J91: JUIN
A92: MIX BUFFET | B92: 1910 | C92: CA1705001151 | E92: 2017-07-04 | F92: 8P | G92: 864 | H92: =G92*256 -> 221,184 | I92: L | J92: JUIN
A93: IFOOD | B93: 3001 | E93: 2017-06-21 | F93: 1P | G93: 108 | H93: 27,648 | I93: M | J93: JUIN
A94: STOCK | B94: 0200 | F94: 40P | G94: 4320 | H94: 1,105,920 | I94: L | J94: MAI
A95: AERO MEXICO | B95: 0500 | C95: 21888-5 | E95: 2018-06-11 | F95: 2P | G95: 176 | H95: 45,056 | I95: L | J95: MAI
A96: AERO MEXICO | B96: 0500 | C96: 21888-3 | E96: 2018-04-09 | F96: 2P | G96: 156 | H96: 39,936 | I96: L | J96: MARS
A97: AIR FRANCE | B97: 0100 | C97: 5314131 | E97: 2017-11-27 | F97: 6P | G97: 648 | H97: 165,888 | I97: L | J97: NOVEMBRE
A98: EXKI | B98: 0213 | C98: AC5026 | E98: 2017-11-17 | F98: 3P | G98: 324 | H98: 82,944 | I98: L | J98: NOVEMBRE
A99: NGMODT | B99: 0218 | E99: 2017-11-28 | F99: 1P | G99: 40 | H99: 10,240 | I99: L | J99: NOVEMBRE
A100: STOCK | B100: 0250 | E100: 2017-11-08 | F100: 5P | G100: 600 | H100: =G100*128 -> 76,800 | I100: M | J100: NOVEMBRE
A101: CLASS CROUTE | B101: 0252 | F101: 6P | G101: 720 | H101: =G101*128 -> 92,160 | I101: M | J101: NOVEMBRE
A102: AERO MEXICO | B102: 0500 | C102: 18210-6 | E102: 2017-12-10 | F102: 2P | G102: 125 | H102: =G102*256 -> 32,000 | I102: K | J102: NOVEMBRE
A103: EVA AIR | B103: 0500 | C103: QP17005390 | E103: 2017-12-04 | F103: 2P | G103: 192 | H103: =G103*256 -> 49,152 | I103: K | J103: NOVEMBRE
A104: EVA AIR | B104: 0500 | C104: QP17004984 | E104: 2017-11-13 | F104: 2P | G104: 192 | H104: =G104*256 -> 49,152 | I104: K | J104: NOVEMBRE
A105: HACO | B105: 0504 | C105: PO00154825 | E105: 2017-12-15 | F105: 6P | G105: 648 | H105: =G105*256 -> 165,888 | I105: L | J105: NOVEMBRE
A106: CLASSIC FINE FOOD | B106: 0506 | C106: PO18794 | D106: lot b | E106: 2017-12-12 | F106: 1P | G106: 60 | H106: =G106*256 -> 15,360 | I106: L | J106: NOVEMBRE
A107: ALCAMORETTI | B107: 0511 | E107: 2017-12-01 | F107: 1P | H107: 20,000 | I107: L | J107: NOVEMBRE
A108: AIR FRANCE | B108: 05GR50 | C108: 5313869 | E108: 2017-11-27 | F108: 1P | G108: 120 | H108: =G108*128 -> 15,360 | I108: M | J108: NOVEMBRE
A109: CLASSIC FINE FOOD | B109: 1306 | C109: PO18794 | D109: lot b | E109: 2017-12-12 | F109: 1P | G109: 40 | H109: =G109*256 -> 10,240 | I109: L | J109: NOVEMBRE
A110: CLASSIC FINE FOOD | B110: 1306 | C110: PO18793 | D110: lot a | E110: 2017-12-05 | F110: 1P | G110: 20 | H110: =G110*256 -> 5,120 | I110: L | J110: NOVEMBRE
A111: ALCAMORETTI | B111: 1311 | E111: 2017-12-01 | F111: 1P | H111: 20,000 | I111: L | J111: NOVEMBRE
A112: IFOOD | B112: 1400 | E112: 2017-12-05 | F112: 1P | G112: 54 | H112: =G112*256 -> 13,824 | I112: L | J112: NOVEMBRE
A113: IFOOD | B113: 1400 | C113: PO17UKT00175 | E113: 2017-11-08 | F113: 1P | G113: 108 | H113: =G113*256 -> 27,648 | I113: K | J113: NOVEMBRE
A114: LEGUFRUIT | B114: 1450 | E114: 2017-11-08 | F114: 1P | G114: 30 | H114: =G114*128 -> 3,840 | I114: M | J114: NOVEMBRE
A115: MIX BUFFET | B115: 1901 | C115: CA1711000242 | E115: 2017-12-04 | F115: 6P | G115: 648 | H115: =G115*256 -> 165,888 | I115: K | J115: NOVEMBRE
A116: MIX BUFFET | B116: 1910 | C116: CA1711000242 | E116: 2017-12-04 | F116: 4P | G116: 432 | H116: =G116*256 -> 110,592 | I116: K | J116: NOVEMBRE
A117: PERI | B117: 1992 | F117: 11TC | G117: 1870 | H117: =G117*256 -> 478,720 | I117: M | J117: NOVEMBRE
A118: AIR FRANCE | B118: 3150 | C118: 5313869 | E118: 2017-11-27 | F118: 1P | G118: 36 | H118: =G118*128 -> 4,608 | I118: M | J118: NOVEMBRE
A119: EXKI | B119: 0213 | C119: AC4945 | E119: 2017-10-06 | F119: 2P | G119: 216 | H119: =G119*256 -> 55,296 | I119: K | J119: OCTOBRE
A120: AERO MEXICO | B120: 0500 | C120: 18210-5 | E120: 2017-11-10 | F120: 2P | G120: 125 | H120: 32,000 | I120: K | J120: OCTOBRE
A121: EVA AIR | B121: 0500 | C121: QP17004576 | E121: 2017-10-30 | F121: 2P | G121: 192 | H121: 49,152 | I121: L | J121: OCTOBRE
A122: AERO MEXICO | B122: 0500 | C122: 18210-4 | E122: 2017-10-10 | F122: 2P | G122: 137 | H122: 35,072 | I122: K | J122: OCTOBRE
A123: LSG | B123: 0500 | C123: 4500925649 | E123: 2017-10-06 | F123: 2P | G123: 200 | H123: 51,200 | I123: L | J123: OCTOBRE
A124: HACO | B124: 0504 | C124: PO00151046 | E124: 2017-10-16 | F124: 6P | G124: 648 | H124: 165,888 | I124: K | J124: OCTOBRE
A125: HACO | B125: 0504 | C125: PO00149747 | E125: 2017-10-15 | F125: 10P | G125: 1080 | H125: 276,480 | I125: K | J125: OCTOBRE
A126: LEGUFRUIT | B126: 0750 | C126: TEL | E126: 2017-10-10 | F126: 1P | G126: 30 | H126: =G126*128 -> 3,840 | I126: M | J126: OCTOBRE
A127: ELAL | B127: 1302 | C127: 4000000829 | E127: 2017-10-23 | F127: 2P | G127: 270 | H127: =G127*256 -> 69,120 | I127: K | J127: OCTOBRE
A128: LEGUFRUIT | B128: 1450 | C128: TEL | E128: 2017-10-10 | F128: 1P | G128: 30 | H128: =G128*128 -> 3,840 | I128: M | J128: OCTOBRE
A129: IFOOD | B129: 1500 | C129: PO17UK03806 | E129: 2017-10-18 | F129: 1P | G129: 108 | H129: =G129*256 -> 27,648 | I129: K | J129: OCTOBRE
A130: MIX BUFFET | B130: 1901 | C130: CA1710000764 | E130: 2017-11-04 | F130: 6P | G130: 648 | H130: 165,888 | I130: K | J130: OCTOBRE
A131: MIX BUFFET | B131: 1910 | C131: 1710000764 | E131: 2017-11-27 | F131: 4P | G131: 432 | H131: 110,592 | I131: K | J131: OCTOBRE
A132: MIX BUFFET | B132: 1910 | C132: CA1710000151 | E132: 2017-10-27 | F132: 4P | G132: 432 | H132: 110,592 | I132: K | J132: OCTOBRE
A133: PERI | B133: 1992 | E133: 2017-11-06 | F133: 28P | G133: 2380 | H133: 609,280 | I133: M | J133: OCTOBRE
A134: AIR FRANCE | B134: 0100 | C134: 5308765 | E134: 2017-10-19 | F134: 6P | G134: 648 | H134: 165,888 | I134: K | J134: SEPTEMBRE
A135: AIR FRANCE | B135: 0100 | C135: 5308763 | E135: 2017-09-14 | F135: 6P | G135: 648 | H135: 165,888 | I135: K | J135: SEPTEMBRE
A136: LSG Belgique | B136: 0200 | C136: 4505956507 | E136: 2017-09-22 | F136: 1P | G136: 120 | H136: 30,720 | I136: K | J136: SEPTEMBRE
A137: DEAN & DELUCA | B137: 0203 | C137: BAILLY20170712 | E137: 2017-09-10 | G137: 40 | H137: 10,240 | I137: M | J137: SEPTEMBRE
A138: QUALIFIRST | B138: 0204 | C138: 29128 | E138: 2017-09-15 | F138: 1P | G138: 135 | H138: 34,560 | I138: K | J138: SEPTEMBRE
A139: AIR TRANSAT | B139: 0205 | C139: 4500821104 | E139: 2017-10-02 | F139: 2P | G139: 216 | H139: 55,296 | I139: L | J139: SEPTEMBRE
A140: COMATEC | B140: 0206 | E140: 2017-10-03 | F140: 1P | G140: 108 | H140: 27,648 | I140: L | J140: SEPTEMBRE
A141: COMATEC | B141: 0206 | E141: 2017-09-15 | F141: 1P | G141: 108 | H141: 27,648 | I141: K | J141: SEPTEMBRE
A142: EXKI | B142: 0213 | C142: AC4880 | E142: 2017-09-14 | F142: 2P | G142: 216 | H142: 55,296 | I142: K | J142: SEPTEMBRE
A143: SYSTÈME U EST | B143: 0217 | E143: 2017-09-13 | F143: 1P | G143: 216 | H143: =G143*50 -> 10,800 | I143: K | J143: SEPTEMBRE
A144: STOCK | B144: 0300 | E144: 2017-09-13 | F144: 1P | G144: 108 | H144: =G144*256 -> 27,648 | I144: K | J144: SEPTEMBRE
A145: VANDENBOGAERDE | B145: 0302 | C145: 34395 | E145: 2017-10-02 | F145: 1P | G145: 108 | H145: =G145*256 -> 27,648 | I145: K | J145: SEPTEMBRE
A146: DEAN & DELUCA | B146: 0303 | C146: BAILLY20170712 | E146: 2017-09-10 | G146: 40 | H146: =G146*256 -> 10,240 | I146: M | J146: SEPTEMBRE
A147: LOGIESMOSE | B147: 0402 | C147: K04012616 | E147: 2017-11-17 | F147: 1P | G147: 57 | H147: =G147*256 -> 14,592 | I147: K | J147: SEPTEMBRE
A148: DEAN & DELUCA | B148: 0403 | C148: BAILLY20170712 | E148: 2017-09-10 | G148: 40 | H148: =G148*256 -> 10,240 | I148: M | J148: SEPTEMBRE
A149: SYSTÈME U EST | B149: 0417 | E149: 2017-09-13 | F149: 1P | G149: 216 | H149: =G149*50 -> 10,800 | I149: K | J149: SEPTEMBRE
A150: AIR CANADA | B150: 0500 | C150: AC075954 | E150: 2017-11-01 | F150: 20P | G150: 2700 | H150: =G150*256 -> 691,200 | I150: K | J150: SEPTEMBRE
A151: EVA AIR | B151: 0500 | C151: QP17004367 | E151: 2017-10-05 | F151: 2P | G151: 192 | H151: 49,152 | I151: K | J151: SEPTEMBRE
A152: AERO MEXICO | B152: 0500 | C152: 18210-3 | E152: 2017-09-22 | F152: 2P | G152: 137 | H152: 35,072 | I152: K | J152: SEPTEMBRE
A153: AERO MEXICO | B153: 0500 | C153: 18210-1 | E153: 2017-09-22 | F153: 2P | G153: 156 | H153: 39,936 | I153: K | J153: SEPTEMBRE
A154: AERO MEXICO | B154: 0500 | C154: 18210-2 | E154: 2017-09-22 | F154: 2P | G154: 125 | H154: 32,000 | I154: K | J154: SEPTEMBRE
A155: EVA AIR | B155: 0500 | C155: QP17004367 | E155: 2017-09-15 | F155: 2P | G155: 192 | H155: 49,152 | I155: K | J155: SEPTEMBRE
A156: LSG KOREA | B156: 0500 | E156: 2017-09-13 | F156: 2P | G156: 200 | H156: 51,200 | I156: L | J156: SEPTEMBRE
A157: HALTE NATURE | B157: 0502 | E157: 2017-10-02 | F157: 1P | G157: 40 | H157: 10,240 | I157: L | J157: SEPTEMBRE
A158: HACO | B158: 0504 | C158: PO00148759 | E158: 2017-09-25 | F158: 4P | G158: 432 | H158: 110,592 | I158: K | J158: SEPTEMBRE
A159: AIR FRANCE | B159: 05GR50 | C159: 5303690 | E159: 2017-09-08 | F159: 1P | G159: 120 | H159: 15,360 | I159: M | J159: SEPTEMBRE
A160: FBS | B160: 1300 | F160: 3P | G160: 294 | H160: =G160*256 -> 75,264 | I160: K | J160: SEPTEMBRE
A161: RAFFAEL | B161: 1301 | E161: 2017-10-10 | F161: 1P | G161: 20 | H161: =G161*256 -> 5,120 | I161: L | J161: SEPTEMBRE
A162: DEAN & DELUCA | B162: 1303 | C162: BAILLY20170712 | E162: 2017-09-10 | G162: 40 | H162: =G162*256 -> 10,240 | I162: M | J162: SEPTEMBRE
A163: STOCK | B163: 1400 | E163: 2017-09-15 | F163: 1P | G163: 108 | H163: =G163*256 -> 27,648 | I163: K | J163: SEPTEMBRE
A164: DEAN & DELUCA | B164: 1483 | C164: BAILLY20170712 | E164: 2017-09-10 | G164: 40 | H164: =G164*50 -> 2,000 | I164: M | J164: SEPTEMBRE
A165: IFOOD | B165: 1500 | C165: PO17UK03400 | E165: 2017-09-29 | F165: 1P | G165: 108 | H165: =G165*256 -> 27,648 | I165: K | J165: SEPTEMBRE
A166: DEAN & DELUCA | B166: 1503 | C166: BAILLY20170712 | E166: 2017-09-10 | G166: 40 | H166: =G166*256 -> 10,240 | I166: M | J166: SEPTEMBRE
A167: DEAN & DELUCA | B167: 1683B | C167: BAILLY20170712 | E167: 2017-09-10 | G167: 40 | H167: =G167*50 -> 2,000 | I167: M | J167: SEPTEMBRE
A168: DEAN & DELUCA | B168: 1783 | C168: BAILLY20170712 | E168: 2017-09-10 | G168: 40 | H168: =G168*50 -> 2,000 | I168: M | J168: SEPTEMBRE
A169: DEAN & DELUCA | B169: 1913 | C169: BAILLY20170712 | E169: 2017-09-10 | G169: 40 | H169: =G169*256 -> 10,240 | I169: M | J169: SEPTEMBRE
A170: IFOOD | B170: 2301 | C170: PO17UK03344 | E170: 2017-10-02 | F170: 1P | G170: 108 | H170: 27,648 | I170: L | J170: SEPTEMBRE
A171: IFOOD | B171: 2301 | C171: PO17UK03247 | E171: 2017-10-02 | F171: 1P | G171: 108 | H171: 27,648 | I171: L | J171: SEPTEMBRE
A172: IFOOD | B172: 2301 | C172: PO17UK00112 | E172: 2017-09-19 | F172: 1P | G172: 108 | H172: 27,648 | I172: M | J172: SEPTEMBRE
A173: IFOOD | B173: 2301 | C173: PO17UKT00116 | E173: 2017-09-15 | F173: 1P | G173: 108 | H173: 27,648 | I173: M | J173: SEPTEMBRE
A174: LOGIESMOSE | B174: 3202 | C174: K04012616 | E174: 2017-11-17 | F174: 1P | G174: 57 | H174: 14,592 | I174: K | J174: SEPTEMBRE

Sheet Test
A2: Réf | B2: Bouchon Métal
A3: Délai Livraison (MOIS) | B3: 2 | C3: JANVIER | D3: FEVRIER | E3: MARS | F3: AVRIL | G3: MAI | H3: JUIN | I3: JUILLET | J3: AOUT | K3: SEPTEMBRE | L3: OCTOBRE | M3: NOVEMBRE | N3: DECEMBRE
A4: Taille de lot | B4: 1000000
A5: Quantité à livrer | C5: =SUMIF(Détails!$J:$J,"*"&C3,Détails!$H:$H) -> 1740544 | D5: =SUMIF(Détails!$J:$J,"*"&D3,Détails!$H:$H) -> 865536 | E5: =SUMIF(Détails!$J:$J,"*"&E3,Détails!$H:$H) -> 39936 | F5: =SUMIF(Détails!$J:$J,"*"&F3,Détails!$H:$H) -> 109824 | G5: =SUMIF(Détails!$J:$J,"*"&G3,Détails!$H:$H) -> 1150976 | H5: =SUMIF(Détails!$J:$J,"*"&H3,Détails!$H:$H) -> 1850912 | I5: =SUMIF(Détails!$J:$J,"*"&I3,Détails!$H:$H) -> 3185168 | J5: =SUMIF(Détails!$J:$J,"*"&J3,Détails!$H:$H) -> 1071136 | K5: =SUMIF(Détails!$J:$J,"*"&K3,Détails!$H:$H) -> 2066640 | L5: =SUMIF(Détails!$J:$J,"*"&L3,Détails!$H:$H) -> 1765888 | M5: =SUMIF(Détails!$J:$J,"*"&M3,Détails!$H:$H) -> 1615424 | N5: =SUMIF(Détails!$J:$J,"*"&N3,Détails!$H:$H) -> 468336
A6: Stock (SI) | B6: 5000000 | C6: =IF(B6-C5>=0,B6-C5,C8+B6-C5) -> 3259456 | D6: =IF(C6-D5>=0,C6-D5,D8+C6-D5) -> 2393920 | E6: 2353984 | F6: 2244160 | G6: 1093184 | H6: 242272 | I6: 57104 | J6: 985968 | K6: 919328 | L6: 153440 | M6: 538016 | N6: 69680
A7: Quantité Manquante | C7: =IF(B6-C5>0,0,ABS(B6-C5)) -> 0 | D7: =IF(C6-D5>0,0,ABS(C6-D5)) -> 0 | E7: 0 | F7: 0 | G7: 0 | H7: 757728 | I7: 2942896 | J7: 1014032 | K7: 1080672 | L7: 846560 | M7: 1461984 | N7: 0
A8: Quantité à commander | C8: =IF(B6-C5>0,0,ROUNDUP(C7,0)) -> 0 | D8: =IF(C6-D5>0,0,ROUNDUP(D7,0)) -> 0 | E8: 0 | F8: 0 | G8: 0 | H8: =IF(G6-H5>0,0,ROUNDUP(H7,-6)) -> 1000000 | I8: =IF(H6-I5>0,0,ROUNDUP(I7,-6)) -> 3000000 | J8: 2000000 | K8: 2000000 | L8: 1000000 | M8: 2000000 | N8: 0
A9: Quantité à lancer en commande | C9: =OFFSET(C8,0,$B$3) -> 0 | D9: =OFFSET(D8,0,$B$3) -> 0 | E9: 0 | F9: 1000000 | G9: 3000000 | H9: 2000000 | I9: 2000000 | J9: 1000000 | K9: =OFFSET(K8,0,$B$3) -> 2000000 | L9: 0 | M9: 0 | N9: 0
D12: bonne formule | E12: =SUM(SUMIF(Détails!B:B,Nomen!C4:C35,Détails!H:H),SUMIF(Nomen!C2:H2,Test!B2,Détails!H:H),SUMIF(Détails!J:J,Test!C3,Détails!H:H)) -> 15505904
E15: =SUM(SUMIF(Détails!B:B,Nomen!C4:C35,Détails!H:H)) -> 13765360

Sheet Nomenclatures

Sheet Nomen
A2: BP | C2: Blle SOM 20ML | E2: Blle EUR 20ML | G2: Blle EUR 30ML
A3: BM | C3: BM | D3: BP | E3: BM | F3: BP | G3: BM | H3: BP
A4: Blle EUR 20ML | C4: 0100 | E4: 0100 | F4: 302 | G4: 0250
A5: Blle EUR 30ML | C5: 0200 | F5: 1901 | G5: 0252
A6: Blle SOM 20ML | C6: 0203 | F6: 2105 | G6: 0450
A7: Blle SOM 30ML | C7: 0204 | G7: 0550
C8: 0205 | G8: 0750
C9: 0206 | G9: 1450
C10: 0213 | G10: 1908
C11: 0217 | G11: 3150
C12: 0218
C13: 0402
C14: 0403
C15: 0417
C16: 0500
C17: 0502
C18: 0504
C19: 0506
C20: 0511
C21: 0600
C22: 1300
C23: 1301
C24: 1311
C25: 1302
C26: 1306
C27: 1400
C28: 1500
C29: 1910
C30: 1913
C31: 1992
C32: 2301
C33: 2706
C34: 3001
C35: 3202
